[Event "FIDE U16 Olympiad_boards_81-124"]
[Site "Eindhoven, Netherlands"]
[Date "2023.08.14"]
[Round "2.15"]
[White "Moayad, Anas"]
[Black "Sun, Chang-Jyu"]
[Result "1/2-1/2"]
[TimeControl "45min+10sec"]
[WhiteElo "1757"]
[BlackElo "1238"]

1. d4 {[%clk 00:45:19]} {[%emt 00:00:01]} Nf6 {[%clk 00:45:17]} {[%emt
00:00:03]} 2. c4 {[%clk 00:45:27]} {[%emt 00:00:01]} c5 {[%clk 00:45:25]}
{[%emt 00:00:02]} 3. Nf3 {[%clk 00:44:46]} {[%emt 00:00:51]} cxd4 {[%clk
00:45:24]} {[%emt 00:00:11]} 4. Nxd4 {[%clk 00:44:54]} {[%emt 00:00:02]} Nc6
{[%clk 00:45:32]} {[%emt 00:00:03]} 5. Nc3 {[%clk 00:44:18]} {[%emt 00:00:46]}
g6 {[%clk 00:45:31]} {[%emt 00:00:11]} 6. e3 {[%clk 00:43:27]} {[%emt
00:01:00]} Bg7 {[%clk 00:44:20]} {[%emt 00:01:21]} 7. Be2 {[%clk 00:43:33]}
{[%emt 00:00:04]} O-O {[%clk 00:44:16]} {[%emt 00:00:14]} 8. O-O {[%clk
00:43:41]} {[%emt 00:00:03]} d5 {[%clk 00:42:42]} {[%emt 00:01:44]} 9. cxd5
{[%clk 00:41:40]} {[%emt 00:02:11]} Nxd5 {[%clk 00:42:38]} {[%emt 00:00:13]} 10.
Nxd5 {[%clk 00:39:55]} {[%emt 00:01:55]} Qxd5 {[%clk 00:39:33]} {[%emt
00:03:15]} 11. Bf3 {[%clk 00:39:35]} {[%emt 00:00:31]} Qc5 {[%clk 00:38:58]}
{[%emt 00:00:43]} 12. Nxc6 {[%clk 00:35:00]} {[%emt 00:04:47]} bxc6 {[%clk
00:39:07]} {[%emt 00:00:01]} 13. Qa4 {[%clk 00:29:29]} {[%emt 00:05:41]} Rb8
{[%clk 00:37:33]} {[%emt 00:01:43]} 14. Rb1 {[%clk 00:26:30]} {[%emt 00:03:09]}
Qb5 {[%clk 00:36:33]} {[%emt 00:01:10]} 15. Qc2 {[%clk 00:24:45]} {[%emt
00:01:55]} Bf5 {[%clk 00:32:20]} {[%emt 00:04:24]} 16. e4 {[%clk 00:24:38]}
{[%emt 00:00:17]} Be6 {[%clk 00:32:27]} {[%emt 00:00:02]} 17. b3 {[%clk
00:24:24]} {[%emt 00:00:25]} Rfd8 {[%clk 00:29:17]} {[%emt 00:03:20]} 18. Be3
{[%clk 00:21:54]} {[%emt 00:02:39]} Bd4 {[%clk 00:25:40]} {[%emt 00:03:48]} 19.
Bxd4 {[%clk 00:22:01]} {[%emt 00:00:02]} Rxd4 {[%clk 00:25:48]} {[%emt
00:00:02]} 20. Rbc1 {[%clk 00:20:18]} {[%emt 00:01:53]} Qa5 {[%clk 00:23:43]}
{[%emt 00:02:15]} 21. Qc5 {[%clk 00:14:37]} {[%emt 00:05:51]} Qxc5 {[%clk
00:22:48]} {[%emt 00:01:05]} 22. Rxc5 {[%clk 00:14:45]} {[%emt 00:00:02]} Rd2
{[%clk 00:22:55]} {[%emt 00:00:04]} 23. Ra5 {[%clk 00:14:53]} {[%emt 00:00:02]}
Rb7 {[%clk 00:21:44]} {[%emt 00:01:21]} 24. Rd1 {[%clk 00:13:36]} {[%emt
00:01:27]} Rb2 {[%clk 00:15:27]} {[%emt 00:06:27]} 25. h3 {[%clk 00:12:31]}
{[%emt 00:01:15]} c5 {[%clk 00:13:30]} {[%emt 00:02:07]} 26. e5 {[%clk
00:05:32]} {[%emt 00:07:09]} Rc7 {[%clk 00:13:17]} {[%emt 00:00:22]} 27. Rd8+
{[%clk 00:05:31]} {[%emt 00:00:11]} Kg7 {[%clk 00:13:24]} {[%emt 00:00:03]} 28.
Ra8 {[%clk 00:05:39]} {[%emt 00:00:03]} c4 {[%clk 00:13:19]} {[%emt 00:00:15]}
29. bxc4 {[%clk 00:05:08]} {[%emt 00:00:41]} Rxc4 {[%clk 00:12:01]} {[%emt
00:01:28]} 30. R8xa7 {[%clk 00:03:52]} {[%emt 00:01:26]} Rc1+ {[%clk 00:12:08]}
{[%emt 00:00:03]} 31. Kh2 {[%clk 00:03:59]} {[%emt 00:00:01]} Rxf2 {[%clk
00:12:16]} {[%emt 00:00:03]} 32. Rxe7 {[%clk 00:02:45]} {[%emt 00:01:25]} Rcc2
{[%clk 00:12:14]} {[%emt 00:00:10]} 33. Kg3 {[%clk 00:02:22]} {[%emt 00:00:34]}
Rxa2 {[%clk 00:12:18]} {[%emt 00:00:06]} 34. Rc5 {[%clk 00:01:51]} {[%emt
00:00:42]} Rfc2 {[%clk 00:12:23]} {[%emt 00:00:04]} 35. Rxc2 {[%clk 00:01:19]}
{[%emt 00:00:43]} Rxc2 {[%clk 00:12:30]} {[%emt 00:00:03]} 36. Kf4 {[%clk
00:01:18]} {[%emt 00:00:10]} Rc4+ {[%clk 00:12:27]} {[%emt 00:00:13]} 37. Ke3
{[%clk 00:01:18]} {[%emt 00:00:11]} Rc5 {[%clk 00:12:28]} {[%emt 00:00:09]} 38.
Kf4 {[%clk 00:01:06]} {[%emt 00:00:21]} Rc4+ {[%clk 00:12:29]} {[%emt
00:00:09]} 39. Kg3 {[%clk 00:00:51]} {[%emt 00:00:25]} Rc5 {[%clk 00:12:38]}
{[%emt 00:00:02]} 40. Kf4 {[%clk 00:00:49]} {[%emt 00:00:12]} Rc4+ {[%clk
00:12:40]} {[%emt 00:00:07]} 41. Ke3 {[%clk 00:00:59]} {[%emt 00:00:01]} Ra4
{[%clk 00:12:32]} {[%emt 00:00:18]} 42. Rc7 {[%clk 00:00:53]} {[%emt 00:00:15]}
Ra3+ {[%clk 00:12:31]} {[%emt 00:00:12]} 43. Kd4 {[%clk 00:01:01]} {[%emt
00:00:02]} Ra4+ {[%clk 00:12:01]} {[%emt 00:00:40]} 44. Kc5 {[%clk 00:01:05]}
{[%emt 00:00:05]} Ra5+ {[%clk 00:12:02]} {[%emt 00:00:10]} 45. Kd4 {[%clk
00:00:59]} {[%emt 00:00:15]} Ra4+ {[%clk 00:12:03]} {[%emt 00:00:09]} 46. Kd3
{[%clk 00:00:35]} {[%emt 00:00:33]} Ra5 {[%clk 00:12:07]} {[%emt 00:00:08]} 47.
Ke4 {[%clk 00:00:28]} {[%emt 00:00:17]} Bd5+ {[%clk 00:12:08]} {[%emt
00:00:09]} 48. Kd4 {[%clk 00:00:33]} {[%emt 00:00:04]} Bxf3 {[%clk 00:12:16]}
{[%emt 00:00:03]} 49. gxf3 {[%clk 00:00:42]} {[%emt 00:00:01]} Ra3 {[%clk
00:12:23]} {[%emt 00:00:03]} 50. e6 {[%clk 00:00:39]} {[%emt 00:00:12]} Ra8
{[%clk 00:11:51]} {[%emt 00:00:42]} 51. Rxf7+ {[%clk 00:00:43]} {[%emt
00:00:06]} Kg8 {[%clk 00:11:46]} {[%emt 00:00:15]} 52. Rd7 {[%clk 00:00:23]}
{[%emt 00:00:30]} Rf8 {[%clk 00:11:34]} {[%emt 00:00:20]} 53. Ke4 {[%clk
00:00:18]} {[%emt 00:00:18]} g5 {[%clk 00:10:56]} {[%emt 00:00:47]} 54. Rd5
{[%clk 00:00:20]} {[%emt 00:00:08]} h6 {[%clk 00:10:49]} {[%emt 00:00:18]} 55.
Rf5 {[%clk 00:00:26]} {[%emt 00:00:03]} Ra8 {[%clk 00:09:46]} {[%emt 00:01:13]}
56. Ke5 {[%clk 00:00:24]} {[%emt 00:00:12]} Kg7 {[%clk 00:09:20]} {[%emt
00:00:37]} 57. Rf7+ {[%clk 00:00:26]} {[%emt 00:00:08]} Kg6 {[%clk 00:09:18]}
{[%emt 00:00:11]} 58. Rc7 {[%clk 00:00:29]} {[%emt 00:00:07]} Ra1 {[%clk
00:08:19]} {[%emt 00:01:10]} 59. e7 {[%clk 00:00:17]} {[%emt 00:00:22]} Kf7
{[%clk 00:08:26]} {[%emt 00:00:03]} 60. Kf5 {[%clk 00:00:23]} {[%emt 00:00:04]}
Ra5+ {[%clk 00:08:22]} {[%emt 00:00:13]} 61. Kg4 {[%clk 00:00:30]} {[%emt
00:00:03]} Ra3 {[%clk 00:08:20]} {[%emt 00:00:12]} 62. Rb7 {[%clk 00:00:14]}
{[%emt 00:00:27]} Rc3 {[%clk 00:08:29]} 63. Ra7 {[%clk 00:00:21]} {[%emt
00:00:03]} Re3 {[%clk 00:08:16]} {[%emt 00:00:22]} 64. Rb7 {[%clk 00:00:25]}
{[%emt 00:00:07]} Rd3 {[%clk 00:08:23]} {[%emt 00:00:02]} 65. e8=Q+ {[%clk
00:00:29]} {[%emt 00:00:06]} Kxe8 {[%clk 00:08:31]} {[%emt 00:00:02]} 66. Rh7
{[%clk 00:00:38]} {[%emt 00:00:01]} Rd4+ {[%clk 00:08:21]} {[%emt 00:00:20]} 67.
Kg3 {[%clk 00:00:12]} {[%emt 00:00:37]} Rh4 {[%clk 00:08:17]} {[%emt 00:00:13]}
68. f4 {[%clk 00:00:21]} {[%emt 00:00:01]} Rxf4 {[%clk 00:08:24]} {[%emt
00:00:04]} 69. Rxh6 {[%clk 00:00:30]} Kf7 {[%clk 00:08:18]} {[%emt 00:00:15]}
70. Ra6 {[%clk 00:00:34]} {[%emt 00:00:07]} Rf5 {[%clk 00:07:59]} {[%emt
00:00:29]} 71. Kg4 {[%clk 00:00:40]} {[%emt 00:00:04]} Rb5 {[%clk 00:08:06]}
{[%emt 00:00:03]} 72. Kh5 {[%clk 00:00:36]} {[%emt 00:00:14]} Rb3 {[%clk
00:08:03]} {[%emt 00:00:13]} 73. Ra7+ {[%clk 00:00:24]} {[%emt 00:00:22]} Kf6
{[%clk 00:07:47]} {[%emt 00:00:19]} 74. Ra6+ {[%clk 00:00:33]} {[%emt
00:00:08]} Kf5 {[%clk 00:07:48]} {[%emt 00:00:09]} 75. Ra5+ {[%clk 00:00:40]}
{[%emt 00:00:04]} Kf4 {[%clk 00:07:55]} {[%emt 00:00:03]} 76. Ra4+ {[%clk
00:00:43]} {[%emt 00:00:07]} Kf5 {[%clk 00:07:56]} {[%emt 00:00:09]} 77. Ra5+
{[%clk 00:00:32]} {[%emt 00:00:21]} Kf4 {[%clk 00:08:03]} {[%emt 00:00:03]} 78.
Rxg5 {[%clk 00:00:15]} {[%emt 00:00:27]} Rxh3+ {[%clk 00:08:11]} {[%emt
00:00:02]} 79. Kg6 {[%clk 00:00:24]} {[%emt 00:00:01]} Rg3 {[%emt 00:00:09]}
1/2-1/2

[Event "FIDE U16 Olympiad_boards_81-124"]
[Site "Eindhoven, Netherlands"]
[Date "2023.08.14"]
[Round "2.16"]
[White "Tsai, Sophie Yi-Hsuan"]
[Black "Elharrak, Ahmed"]
[Result "0-1"]
[TimeControl "45min+10sec"]
[WhiteElo "1155"]
[BlackElo "1764"]

1. e4 {[%clk 00:45:17]} {[%emt 00:00:03]} c6 {[%clk 00:45:14]} {[%emt
00:00:06]} 2. d4 {[%clk 00:45:25]} {[%emt 00:00:02]} d5 {[%clk 00:45:22]}
{[%emt 00:00:02]} 3. exd5 {[%clk 00:45:33]} {[%emt 00:00:02]} cxd5 {[%clk
00:45:29]} {[%emt 00:00:02]} 4. Bd3 {[%emt 00:01:22]} Nc6 {[%clk 00:44:20]} 5.
c3 {[%clk 00:45:48]} {[%emt 00:00:02]} Nf6 {[%clk 00:44:23]} {[%emt 00:00:08]}
6. h3 {[%clk 00:45:44]} {[%emt 00:00:14]} e6 {[%clk 00:43:42]} {[%emt
00:00:51]} 7. Nf3 {[%clk 00:45:25]} {[%emt 00:00:28]} Bd6 {[%clk 00:43:29]}
{[%emt 00:00:24]} 8. Nbd2 {[%clk 00:44:17]} {[%emt 00:01:18]} O-O {[%clk
00:41:28]} {[%emt 00:02:11]} 9. O-O {[%clk 00:44:23]} {[%emt 00:00:04]} Qc7
{[%clk 00:40:20]} {[%emt 00:01:18]} 10. Bb1 {[%clk 00:44:05]} {[%emt 00:00:27]}
Ne7 {[%clk 00:40:25]} {[%emt 00:00:06]} 11. Re1 {[%clk 00:42:40]} {[%emt
00:01:34]} Ng6 {[%clk 00:40:10]} {[%emt 00:00:26]} 12. Nf1 {[%clk 00:41:43]}
{[%emt 00:01:06]} b6 {[%clk 00:40:18]} {[%emt 00:00:03]} 13. Ne3 {[%clk
00:31:08]} {[%emt 00:10:45]} Ba6 {[%clk 00:39:53]} {[%emt 00:00:35]} 14. Bd2
{[%clk 00:27:45]} {[%emt 00:03:33]} Nf4 {[%clk 00:38:36]} {[%emt 00:01:27]} 15.
a4 {[%clk 00:24:34]} {[%emt 00:03:20]} Nd3 {[%clk 00:37:30]} {[%emt 00:01:16]}
16. Bxd3 {[%clk 00:24:40]} {[%emt 00:00:04]} Bxd3 {[%clk 00:37:38]} {[%emt
00:00:02]} 17. Nc2 {[%clk 00:19:37]} {[%emt 00:05:13]} h6 {[%clk 00:31:05]}
{[%emt 00:06:45]} 18. Ne5 {[%clk 00:17:36]} {[%emt 00:02:10]} Bh7 {[%clk
00:28:35]} {[%emt 00:02:39]} 19. Na3 {[%clk 00:11:27]} {[%emt 00:06:19]} a6
{[%clk 00:27:08]} {[%emt 00:01:38]} 20. Qc1 {[%clk 00:09:35]} {[%emt 00:02:03]}
Ne4 {[%clk 00:24:55]} {[%emt 00:02:23]} 21. f3 {[%clk 00:09:05]} {[%emt
00:00:39]} Nxd2 {[%clk 00:24:38]} {[%emt 00:00:27]} 22. Qxd2 {[%clk 00:09:12]}
{[%emt 00:00:03]} f6 {[%clk 00:22:36]} {[%emt 00:02:12]} 23. Ng4 {[%clk
00:09:02]} {[%emt 00:00:19]} Rfe8 {[%clk 00:22:03]} {[%emt 00:00:43]} 24. Ne3
{[%clk 00:05:35]} {[%emt 00:03:38]} Rad8 {[%clk 00:21:49]} {[%emt 00:00:25]} 25.
Qe2 {[%clk 00:04:57]} {[%emt 00:00:47]} Qb7 {[%clk 00:21:13]} {[%emt 00:00:46]}
26. c4 {[%clk 00:04:19]} {[%emt 00:00:47]} Bf4 {[%clk 00:10:18]} {[%emt
00:11:06]} 27. Red1 {[%clk 00:03:02]} {[%emt 00:01:27]} Rc8 {[%clk 00:09:09]}
{[%emt 00:01:19]} 28. b3 {[%clk 00:02:54]} {[%emt 00:00:19]} Red8 {[%clk
00:08:54]} {[%emt 00:00:24]} 29. Ng4 {[%clk 00:02:44]} {[%emt 00:00:20]} Bf5
{[%clk 00:08:49]} {[%emt 00:00:16]} 30. Ne3 {[%clk 00:01:19]} {[%emt 00:01:34]}
Bg6 {[%clk 00:08:15]} {[%emt 00:00:43]} 31. Ng4 {[%clk 00:01:06]} {[%emt
00:00:24]} Bf7 {[%clk 00:08:19]} {[%emt 00:00:06]} 32. Nf2 {[%clk 00:01:09]}
{[%emt 00:00:08]} e5 {[%clk 00:07:37]} {[%emt 00:00:52]} 33. Nd3 {[%clk
00:00:46]} {[%emt 00:00:32]} Bg3 {[%clk 00:07:31]} {[%emt 00:00:17]} 34. dxe5
{[%clk 00:00:41]} {[%emt 00:00:15]} fxe5 {[%clk 00:07:40]} {[%emt 00:00:01]} 35.
Nf2 {[%clk 00:00:41]} {[%emt 00:00:09]} Qc7 {[%clk 00:04:28]} {[%emt 00:03:22]}
36. cxd5 {[%clk 00:00:40]} {[%emt 00:00:11]} Rxd5 {[%clk 00:02:54]} {[%emt
00:01:44]} 37. Rxd5 {[%clk 00:00:15]} {[%emt 00:00:34]} Bxd5 {[%clk 00:03:02]}
{[%emt 00:00:02]} 38. Rb1 {[%clk 00:00:25]} Qc5 {[%clk 00:02:35]} {[%emt
00:00:38]} 39. Nc4 {[%clk 00:00:33]} {[%emt 00:00:01]} Bxf2+ {[%clk 00:02:25]}
{[%emt 00:00:21]} 40. Qxf2 {[%clk 00:00:42]} {[%emt 00:00:01]} Qxf2+ {[%clk
00:02:33]} {[%emt 00:00:01]} 41. Kxf2 {[%clk 00:00:51]} {[%emt 00:00:02]} Bxc4
{[%clk 00:02:43]} 42. bxc4 {[%clk 00:00:59]} {[%emt 00:00:01]} Rxc4 {[%clk
00:02:52]} 43. Rxb6 {[%clk 00:01:07]} {[%emt 00:00:02]} Rxa4 {[%clk 00:03:02]}
44. Ke3 {[%clk 00:00:17]} {[%emt 00:01:00]} Kf7 {[%clk 00:03:09]} {[%emt
00:00:03]} 45. g3 {[%clk 00:00:21]} {[%emt 00:00:07]} g6 {[%clk 00:01:52]}
{[%emt 00:01:27]} 46. h4 {[%clk 00:00:30]} {[%emt 00:00:01]} h5 {[%clk
00:01:07]} {[%emt 00:00:54]} 47. Rc6 {[%clk 00:00:27]} {[%emt 00:00:13]} Ra1
{[%clk 00:01:13]} {[%emt 00:00:04]} 48. Ke4 {[%clk 00:00:25]} {[%emt 00:00:12]}
Re1+ {[%clk 00:01:05]} {[%emt 00:00:19]} 49. Kd5 {[%clk 00:00:31]} {[%emt
00:00:04]} a5 {[%clk 00:00:44]} {[%emt 00:00:31]} 50. Ra6 {[%clk 00:00:34]}
{[%emt 00:00:06]} Re3 {[%clk 00:00:48]} {[%emt 00:00:06]} 51. Rxa5 {[%clk
00:00:36]} {[%emt 00:00:08]} Rxf3 {[%clk 00:00:58]} {[%emt 00:00:01]} 52. Kxe5
{[%clk 00:00:38]} {[%emt 00:00:07]} Rf5+ {[%clk 00:01:07]} 0-1

[Event "FIDE U16 Olympiad_boards_81-124"]
[Site "Eindhoven, Netherlands"]
[Date "2023.08.14"]
[Round "2.17"]
[White "Wangthumboon, Patawee"]
[Black "Song, Ethan"]
[Result "0-1"]
[TimeControl "45min+10sec"]
[WhiteElo "1452"]
[BlackElo "2025"]

1. e4 {[%clk 00:45:14]} {[%emt 00:00:05]} c6 {[%clk 00:45:19]} {[%emt
00:00:02]} 2. d4 {[%clk 00:45:22]} {[%emt 00:00:02]} d5 {[%clk 00:45:28]}
{[%emt 00:00:01]} 3. exd5 {[%clk 00:45:30]} {[%emt 00:00:02]} cxd5 {[%clk
00:45:36]} {[%emt 00:00:02]} 4. Bd3 {[%clk 00:45:37]} {[%emt 00:00:03]} Nc6
{[%clk 00:45:45]} {[%emt 00:00:01]} 5. c3 {[%clk 00:45:41]} {[%emt 00:00:05]}
Nf6 {[%clk 00:45:52]} {[%emt 00:00:03]} 6. Bf4 {[%clk 00:45:45]} {[%emt
00:00:06]} Bg4 {[%clk 00:45:32]} {[%emt 00:00:30]} 7. Qb3 {[%clk 00:45:37]}
{[%emt 00:00:20]} Qd7 {[%clk 00:45:10]} {[%emt 00:00:31]} 8. Nd2 {[%clk
00:45:04]} {[%emt 00:00:42]} e6 {[%clk 00:43:48]} {[%emt 00:01:33]} 9. Ngf3
{[%clk 00:45:02]} {[%emt 00:00:12]} Bd6 {[%clk 00:41:30]} {[%emt 00:02:29]} 10.
Bxd6 {[%clk 00:44:29]} {[%emt 00:00:42]} Qxd6 {[%clk 00:41:38]} {[%emt
00:00:02]} 11. O-O {[%clk 00:44:19]} {[%emt 00:00:19]} Rb8 {[%clk 00:40:13]}
{[%emt 00:01:36]} 12. Rfe1 {[%clk 00:43:33]} {[%emt 00:00:56]} O-O {[%clk
00:40:11]} {[%emt 00:00:13]} 13. Ne5 {[%clk 00:42:20]} {[%emt 00:01:22]} Bf5
{[%clk 00:39:42]} {[%emt 00:00:40]} 14. Bxf5 {[%clk 00:40:31]} {[%emt
00:01:59]} exf5 {[%clk 00:39:49]} {[%emt 00:00:02]} 15. Re2 {[%clk 00:36:28]}
{[%emt 00:04:12]} Ne4 {[%clk 00:39:02]} {[%emt 00:00:57]} 16. Nxc6 {[%clk
00:29:02]} {[%emt 00:07:37]} bxc6 {[%clk 00:38:48]} {[%emt 00:00:23]} 17. Qc2
{[%clk 00:28:46]} {[%emt 00:00:26]} g6 {[%clk 00:38:31]} {[%emt 00:00:27]} 18.
f3 {[%clk 00:28:35]} {[%emt 00:00:21]} Ng5 {[%clk 00:38:32]} {[%emt 00:00:10]}
19. Nb3 {[%clk 00:27:53]} {[%emt 00:00:51]} Ne6 {[%clk 00:37:35]} {[%emt
00:01:07]} 20. Rae1 {[%clk 00:26:46]} {[%emt 00:01:18]} h5 {[%clk 00:34:35]}
{[%emt 00:03:10]} 21. Qd2 {[%clk 00:23:41]} {[%emt 00:03:15]} Kg7 {[%clk
00:33:14]} {[%emt 00:01:29]} 22. Re5 {[%clk 00:22:30]} {[%emt 00:01:24]} Rh8
{[%clk 00:30:52]} {[%emt 00:02:30]} 23. Kh1 {[%clk 00:18:45]} {[%emt 00:03:56]}
h4 {[%clk 00:30:00]} {[%emt 00:01:03]} 24. h3 {[%clk 00:17:47]} {[%emt
00:01:07]} Rb5 {[%clk 00:25:48]} {[%emt 00:04:22]} 25. Nc1 {[%clk 00:16:51]}
{[%emt 00:01:06]} a5 {[%clk 00:24:32]} {[%emt 00:01:26]} 26. Nd3 {[%clk
00:15:25]} {[%emt 00:01:35]} Rhb8 {[%clk 00:24:25]} {[%emt 00:00:18]} 27. b4
{[%clk 00:12:44]} {[%emt 00:02:52]} axb4 {[%clk 00:23:19]} {[%emt 00:01:16]} 28.
cxb4 {[%emt 00:08:00]} Nxd4 {[%clk 00:15:31]} {[%emt 00:00:01]} 29. Nc5 {[%clk
00:10:59]} {[%emt 00:02:01]} Rxb4 {[%clk 00:12:35]} {[%emt 00:03:06]} 30. Na6
{[%clk 00:10:53]} {[%emt 00:00:16]} Ne6 {[%clk 00:11:04]} {[%emt 00:01:41]} 31.
Nxb8 {[%clk 00:10:29]} {[%emt 00:00:34]} Qxb8 {[%clk 00:10:37]} {[%emt
00:00:37]} 32. R5e3 {[%clk 00:08:44]} {[%emt 00:01:55]} Rb2 {[%clk 00:09:23]}
{[%emt 00:01:24]} 33. Qc1 {[%clk 00:06:32]} {[%emt 00:02:22]} c5 {[%clk
00:05:55]} {[%emt 00:03:37]} 34. R3e2 {[%clk 00:05:45]} {[%emt 00:00:58]} Rb4
{[%clk 00:05:52]} {[%emt 00:00:13]} 35. a3 {[%clk 00:05:18]} {[%emt 00:00:37]}
Rb3 {[%clk 00:05:38]} {[%emt 00:00:24]} 36. a4 {[%clk 00:04:44]} {[%emt
00:00:45]} Qb4 {[%clk 00:05:19]} {[%emt 00:00:28]} 37. Ra2 {[%clk 00:03:46]}
{[%emt 00:01:08]} Nf4 {[%clk 00:04:54]} {[%emt 00:00:35]} 38. Qa1+ {[%clk
00:03:38]} {[%emt 00:00:19]} d4 {[%clk 00:04:41]} {[%emt 00:00:23]} 39. a5
{[%clk 00:03:37]} {[%emt 00:00:10]} Nd3 {[%clk 00:02:53]} {[%emt 00:01:58]} 40.
Rf1 {[%clk 00:03:04]} {[%emt 00:00:43]} Qb8 {[%clk 00:02:30]} {[%emt 00:00:33]}
41. a6 {[%clk 00:03:01]} {[%emt 00:00:14]} Qa7 {[%clk 00:02:34]} {[%emt
00:00:06]} 42. Rb1 {[%clk 00:02:36]} {[%emt 00:00:34]} Rxb1+ {[%clk 00:01:40]}
{[%emt 00:01:03]} 43. Qxb1 {[%clk 00:02:45]} {[%emt 00:00:01]} Nb4 {[%clk
00:01:47]} {[%emt 00:00:04]} 44. Qb3 {[%clk 00:01:33]} {[%emt 00:01:22]} d3
{[%clk 00:01:29]} {[%emt 00:00:28]} 45. Ra1 {[%clk 00:01:12]} {[%emt 00:00:31]}
Kg8 {[%clk 00:01:10]} {[%emt 00:00:29]} 46. Qc4 {[%clk 00:01:07]} {[%emt
00:00:16]} d2 {[%clk 00:00:59]} {[%emt 00:00:20]} 47. Qb5 {[%clk 00:00:22]}
{[%emt 00:00:55]} Nxa6 {[%clk 00:00:38]} {[%emt 00:00:32]} 48. Qe8+ {[%clk
00:00:31]} Kg7 {[%emt 00:00:09]} 49. Qe5+ {[%clk 00:00:33]} {[%emt 00:00:07]}
Kh7 {[%clk 00:00:43]} {[%emt 00:00:06]} 50. Qd5 {[%clk 00:00:40]} {[%emt
00:00:04]} Nb4 {[%clk 00:00:45]} {[%emt 00:00:08]} 51. Qe5 {[%emt 00:00:44]}
0-1

[Event "FIDE U16 Olympiad_boards_81-124"]
[Site "Eindhoven, Netherlands"]
[Date "2023.08.14"]
[Round "2.18"]
[White "He, Matthew"]
[Black "Saipetch, Kai"]
[Result "1-0"]
[TimeControl "45min+10sec"]
[WhiteElo "1839"]
[BlackElo "1270"]

1. d4 {[%clk 00:45:18]} {[%emt 00:00:01]} d5 {[%clk 00:45:17]} {[%emt
00:00:03]} 2. c4 {[%clk 00:45:25]} {[%emt 00:00:03]} e6 {[%clk 00:45:24]}
{[%emt 00:00:04]} 3. Nc3 {[%clk 00:45:33]} {[%emt 00:00:02]} Nf6 {[%clk
00:45:31]} {[%emt 00:00:03]} 4. cxd5 {[%clk 00:45:41]} {[%emt 00:00:02]} exd5
{[%clk 00:45:36]} {[%emt 00:00:04]} 5. Bg5 {[%clk 00:45:49]} {[%emt 00:00:02]}
Nbd7 {[%clk 00:45:42]} {[%emt 00:00:04]} 6. e3 {[%clk 00:45:56]} {[%emt
00:00:03]} Be7 {[%clk 00:45:47]} {[%emt 00:00:04]} 7. Bd3 {[%clk 00:46:02]}
{[%emt 00:00:04]} O-O {[%clk 00:45:51]} {[%emt 00:00:06]} 8. Qc2 {[%clk
00:46:08]} {[%emt 00:00:05]} h6 {[%clk 00:45:42]} {[%emt 00:00:19]} 9. Bh4
{[%clk 00:46:13]} {[%emt 00:00:05]} c6 {[%clk 00:45:43]} {[%emt 00:00:09]} 10.
Nge2 {[%clk 00:46:20]} {[%emt 00:00:03]} Re8 {[%clk 00:45:43]} {[%emt
00:00:09]} 11. f3 {[%clk 00:45:50]} {[%emt 00:00:41]} Nf8 {[%clk 00:43:57]}
{[%emt 00:01:56]} 12. O-O {[%clk 00:45:28]} {[%emt 00:00:33]} Bd6 {[%clk
00:39:01]} {[%emt 00:05:05]} 13. Bxf6 {[%clk 00:43:20]} {[%emt 00:02:19]} Qxf6
{[%clk 00:38:35]} {[%emt 00:00:36]} 14. e4 {[%clk 00:43:27]} {[%emt 00:00:04]}
Qh4 {[%clk 00:35:35]} {[%emt 00:03:08]} 15. e5 {[%clk 00:42:33]} {[%emt
00:01:04]} Bc7 {[%clk 00:35:38]} {[%emt 00:00:08]} 16. g3 {[%clk 00:42:03]}
{[%emt 00:00:40]} Qe7 {[%clk 00:33:12]} {[%emt 00:02:35]} 17. Rad1 {[%clk
00:37:43]} {[%emt 00:04:31]} Bb6 {[%clk 00:32:55]} {[%emt 00:00:26]} 18. f4
{[%clk 00:36:09]} {[%emt 00:01:45]} Qb4 {[%clk 00:28:46]} {[%emt 00:04:18]} 19.
Kg2 {[%clk 00:35:10]} {[%emt 00:01:10]} Ne6 {[%clk 00:27:53]} {[%emt 00:01:02]}
20. a3 {[%clk 00:35:10]} {[%emt 00:00:11]} Qe7 {[%clk 00:26:41]} {[%emt
00:01:22]} 21. Bh7+ {[%clk 00:33:38]} {[%emt 00:01:42]} Kh8 {[%clk 00:26:20]}
{[%emt 00:00:30]} 22. Bf5 {[%clk 00:28:29]} {[%emt 00:05:20]} g6 {[%clk
00:25:41]} {[%emt 00:00:49]} 23. Bh3 {[%clk 00:26:02]} {[%emt 00:02:37]} Rg8
{[%clk 00:24:22]} {[%emt 00:01:28]} 24. f5 {[%clk 00:24:27]} {[%emt 00:01:46]}
Ng5 {[%clk 00:24:10]} {[%emt 00:00:21]} 25. Bg4 {[%clk 00:24:33]} {[%emt
00:00:05]} h5 {[%clk 00:24:07]} {[%emt 00:00:13]} 26. f6 {[%clk 00:24:38]}
{[%emt 00:00:05]} Qf8 {[%clk 00:23:33]} {[%emt 00:00:42]} 27. Bxc8 {[%clk
00:24:35]} {[%emt 00:00:14]} Qxc8 {[%clk 00:23:40]} {[%emt 00:00:03]} 28. Qd2
{[%clk 00:23:46]} {[%emt 00:00:59]} Nh7 {[%clk 00:18:34]} {[%emt 00:05:16]} 29.
Nf4 {[%clk 00:22:54]} {[%emt 00:01:02]} Qg4 {[%clk 00:11:12]} {[%emt 00:07:32]}
30. h3 {[%clk 00:22:43]} {[%emt 00:00:23]} Qd7 {[%clk 00:10:03]} {[%emt
00:01:18]} 31. Rde1 {[%clk 00:20:48]} {[%emt 00:02:05]} Bd8 {[%clk 00:07:43]}
{[%emt 00:02:29]} 32. Qd3 {[%clk 00:16:58]} {[%emt 00:04:01]} Nf8 {[%clk
00:03:41]} {[%emt 00:04:12]} 33. Qe3 {[%clk 00:13:48]} {[%emt 00:03:19]} Kh7
{[%clk 00:03:29]} {[%emt 00:00:22]} 34. Rh1 {[%clk 00:09:18]} {[%emt 00:04:41]}
Ne6 {[%clk 00:03:08]} {[%emt 00:00:31]} 35. g4 {[%clk 00:08:23]} {[%emt
00:01:06]} Bb6 {[%clk 00:02:39]} {[%emt 00:00:38]} 36. Nce2 {[%clk 00:07:08]}
{[%emt 00:01:24]} Rad8 {[%clk 00:01:45]} {[%emt 00:01:04]} 37. Kf2 {[%clk
00:05:49]} {[%emt 00:01:29]} c5 {[%clk 00:01:38]} {[%emt 00:00:18]} 38. Nxe6
{[%clk 00:05:28]} {[%emt 00:00:31]} Qxe6 {[%clk 00:01:34]} {[%emt 00:00:14]} 39.
dxc5 {[%clk 00:04:40]} {[%emt 00:00:59]} Bc7 {[%clk 00:01:32]} {[%emt
00:00:12]} 40. Nd4 {[%clk 00:04:37]} {[%emt 00:00:13]} Qe8 {[%clk 00:01:21]}
{[%emt 00:00:20]} 41. gxh5 {[%clk 00:03:52]} {[%emt 00:00:56]} gxh5 {[%clk
00:01:29]} {[%emt 00:00:02]} 42. Qd3+ {[%clk 00:03:58]} {[%emt 00:00:04]} Rg6
{[%clk 00:01:03]} {[%emt 00:00:36]} 43. Qf5 {[%clk 00:03:50]} {[%emt 00:00:18]}
Qa4 {[%clk 00:00:42]} {[%emt 00:00:30]} 44. Rd1 {[%clk 00:03:17]} {[%emt
00:00:44]} Re8 {[%clk 00:00:43]} {[%emt 00:00:09]} 45. Qxh5+ {[%clk 00:03:14]}
{[%emt 00:00:14]} Kg8 {[%clk 00:00:52]} 46. Rhg1 {[%clk 00:03:07]} {[%emt
00:00:16]} Qd7 {[%clk 00:00:13]} {[%emt 00:00:49]} 47. e6 {[%clk 00:02:34]}
{[%emt 00:00:43]} 1-0